{"text_format":"3","workbook":"xlsx","n_sheets":3,"sheets":["Údaje potenciálních zákazníků","Prognóza prodejů ","Měsíční vážená prognóza"],"not_rendered":{"charts":1,"defined_names":10},"read":"whole","date_system":"1900"}

{"sheet":"Údaje potenciálních zákazníků","index":0,"n_rows":9,"n_cols":10,"rows_kept":9,"merged":[[3,1,3,8]]}
[null,"Název společnosti"]
[null,"Podrobné sledování potenciálních zákazníků"]
[null,{"$f":"TODAY()","v":"2018-07-24"}]
[null,{"$f":"Název_společnosti","v":"Název společnosti"},{"$nulls":7},"DŮVĚRNÉ"]
[null,"Název potenciálního zákazníka","Kontakt u potenciálního zákazníka","První zdroj \ninformací","Oblast potenciálního \nzákazníka","Typ potenciálního \nzákazníka","Potenciální příležitost","Pravděpodobnost \nprodeje","Předpovídané \nuzavření","Vážená \nprognóza"]
[null,"A. Datum Corporation",{"$nulls":3},"Strategický",{"v":300000,"d":"300,000.00 Kč"},{"v":0.9,"d":"90%"},"Leden",{"$f":"IFERROR(IF(ÚdajeOPotenciálníchZákaznících[Pravděpodobnost \nprodeje]<>\"\",ÚdajeOPotenciálníchZákaznících[Pravděpodobnost \nprodeje]*ÚdajeOPotenciálníchZákaznících[Potenciální příležitost],\"\"),\"\")","v":{"v":270000,"d":"270,000.00 Kč"}}]
[null,"Adventure Works",{"$nulls":3},"Strategický",{"v":200000,"d":"200,000.00 Kč"},{"v":0.1,"d":"10%"},"Únor",{"$f":"IFERROR(IF(ÚdajeOPotenciálníchZákaznících[Pravděpodobnost \nprodeje]<>\"\",ÚdajeOPotenciálníchZákaznících[Pravděpodobnost \nprodeje]*ÚdajeOPotenciálníchZákaznících[Potenciální příležitost],\"\"),\"\")","v":{"v":20000,"d":"20,000.00 Kč"}}]
[null,"Alpine Ski House",{"$nulls":3},"Taktický",{"v":100000,"d":"100,000.00 Kč"},{"v":0.2,"d":"20%"},"Březen",{"$f":"IFERROR(IF(ÚdajeOPotenciálníchZákaznících[Pravděpodobnost \nprodeje]<>\"\",ÚdajeOPotenciálníchZákaznících[Pravděpodobnost \nprodeje]*ÚdajeOPotenciálníchZákaznících[Potenciální příležitost],\"\"),\"\")","v":{"v":20000,"d":"20,000.00 Kč"}}]
[null,"Celkem",{"$nulls":4},{"$f":"SUBTOTAL(109,ÚdajeOPotenciálníchZákaznících[Potenciální příležitost])","v":{"v":600000,"d":"600,000.00 Kč"}},null,null,{"$f":"SUBTOTAL(109,ÚdajeOPotenciálníchZákaznících[Vážená \nprognóza])","v":{"v":310000,"d":"310,000.00 Kč"}}]

{"sheet":"Prognóza prodejů ","index":1,"n_rows":21,"n_cols":14,"rows_kept":21,"merged":[[3,1,3,11],[3,12,3,13]]}
[null,{"$f":"Název_společnosti","v":"Název společnosti"}]
[null,"Prognóza prodejů"]
[null,{"$f":"DatumSledování","v":"2018-07-24"}]
[null,{"$f":"Název_společnosti","v":"Název společnosti"},{"$nulls":10},"DŮVĚRNÉ"]
[null,"Název potenciálního zákazníka","Prognóza \nna leden","Prognóza \nna únor","Prognóza \nna březen","Prognóza \nna duben","Prognóza \nna květen","Prognóza \nna červen","Prognóza na červenec","Prognóza \nna srpen","Prognóza \nna září","Prognóza \nna říjen","Prognóza \nna listopad","Prognóza \nna prosinec"]
[null,{"$f":"IFERROR(IF(AND(ÚdajeOPotenciálníchZákaznících[Název potenciálního zákazníka] <> \"\", ROW(PrognózaProdejů[Název potenciálního zákazníka])<>PosledníPoložka),ÚdajeOPotenciálníchZákaznících[Název potenciálního zákazníka], \"\"),\"\")","v":"A. Datum Corporation"},{"$f":"IFERROR(IF(ÚdajeOPotenciálníchZákaznících[Předpovídané \nuzavření] <>\"\",IF(ÚdajeOPotenciálníchZákaznících[Předpovídané \nuzavření]= \"Leden\",ÚdajeOPotenciálníchZákaznících[Vážená \nprognóza],0),\"\"),\"\")","v":{"v":270000,"d":"270,000 Kč"}},{"$f":"IFERROR(IF(ÚdajeOPotenciálníchZákaznících[Předpovídané \nuzavření] <>\"\",IF(ÚdajeOPotenciálníchZákaznících[Předpovídané \nuzavření] = \"Únor\",ÚdajeOPotenciálníchZákaznících[Vážená \nprognóza],0),\"\"),\"\")","v":{"v":0,"d":"0 Kč"}},{"$f":"IFERROR(IF(ÚdajeOPotenciálníchZákaznících[Předpovídané \nuzavření] <>\"\",IF(ÚdajeOPotenciálníchZákaznících[Předpovídané \nuzavření] = \"Březen\",ÚdajeOPotenciálníchZákaznících[Vážená \nprognóza],0),\"\"),\"\")","v":{"v":0,"d":"0 Kč"}},{"$f":"IFERROR(IF(ÚdajeOPotenciálníchZákaznících[Předpovídané \nuzavření] <>\"\",IF(ÚdajeOPotenciálníchZákaznících[Předpovídané \nuzavření] = \"Duben\",ÚdajeOPotenciálníchZákaznících[Vážená \nprognóza],0),\"\"),\"\")","v":{"v":0,"d":"0 Kč"}},{"$f":"IFERROR(IF(ÚdajeOPotenciálníchZákaznících[Předpovídané \nuzavření] <>\"\",IF(ÚdajeOPotenciálníchZákaznících[Předpovídané \nuzavření] = \"Květen\",ÚdajeOPotenciálníchZákaznících[Vážená \nprognóza],0),\"\"),\"\")","v":{"v":0,"d":"0 Kč"}},{"$f":"IFERROR(IF(ÚdajeOPotenciálníchZákaznících[Předpovídané \nuzavření] <>\"\",IF(ÚdajeOPotenciálníchZákaznících[Předpovídané \nuzavření] = \"Červen\",ÚdajeOPotenciálníchZákaznících[Vážená \nprognóza],0),\"\"),\"\")","v":{"v":0,"d":"0 Kč"}},{"$f":"IFERROR(IF(ÚdajeOPotenciálníchZákaznících[Předpovídané \nuzavření] <>\"\",IF(ÚdajeOPotenciálníchZákaznících[Předpovídané \nuzavření] = \"Červenec\",ÚdajeOPotenciálníchZákaznících[Vážená \nprognóza],0),\"\"),\"\")","v":{"v":0,"d":"0 Kč"}},{"$f":"IFERROR(IF(ÚdajeOPotenciálníchZákaznících[Předpovídané \nuzavření] <>\"\",IF(ÚdajeOPotenciálníchZákaznících[Předpovídané \nuzavření] = \"Srpen\",ÚdajeOPotenciálníchZákaznících[Vážená \nprognóza],0),\"\"),\"\")","v":{"v":0,"d":"0 Kč"}},{"$f":"IFERROR(IF(ÚdajeOPotenciálníchZákaznících[Předpovídané \nuzavření] <>\"\",IF(ÚdajeOPotenciálníchZákaznících[Předpovídané \nuzavření] = \"Září\",ÚdajeOPotenciálníchZákaznících[Vážená \nprognóza],0),\"\"),\"\")","v":{"v":0,"d":"0 Kč"}},{"$f":"IFERROR(IF(ÚdajeOPotenciálníchZákaznících[Předpovídané \nuzavření] <>\"\",IF(ÚdajeOPotenciálníchZákaznících[Předpovídané \nuzavření] = \"Říjen\",ÚdajeOPotenciálníchZákaznících[Vážená \nprognóza],0),\"\"),\"\")","v":{"v":0,"d":"0 Kč"}},{"$f":"IFERROR(IF(ÚdajeOPotenciálníchZákaznících[Předpovídané \nuzavření] <>\"\",IF(ÚdajeOPotenciálníchZákaznících[Předpovídané \nuzavření] = \"Listopad\",ÚdajeOPotenciálníchZákaznících[Vážená \nprognóza],0),\"\"),\"\")","v":{"v":0,"d":"0 Kč"}},{"$f":"IFERROR(IF(ÚdajeOPotenciálníchZákaznících[Předpovídané \nuzavření] <>\"\",IF(ÚdajeOPotenciálníchZákaznících[Předpovídané \nuzavření] = \"Prosinec\",ÚdajeOPotenciálníchZákaznících[Vážená \nprognóza],0),\"\"),\"\")","v":{"v":0,"d":"0 Kč"}}]
[null,{"$f":"IFERROR(IF(AND(ÚdajeOPotenciálníchZákaznících[Název potenciálního zákazníka] <> \"\", ROW(PrognózaProdejů[Název potenciálního zákazníka])<>PosledníPoložka),ÚdajeOPotenciálníchZákaznících[Název potenciálního zákazníka], \"\"),\"\")","v":"Adventure Works"},{"$f":"IFERROR(IF(ÚdajeOPotenciálníchZákaznících[Předpovídané \nuzavření] <>\"\",IF(ÚdajeOPotenciálníchZákaznících[Předpovídané \nuzavření]= \"Leden\",ÚdajeOPotenciálníchZákaznících[Vážená \nprognóza],0),\"\"),\"\")","v":{"v":0,"d":"0 Kč"}},{"$f":"IFERROR(IF(ÚdajeOPotenciálníchZákaznících[Předpovídané \nuzavření] <>\"\",IF(ÚdajeOPotenciálníchZákaznících[Předpovídané \nuzavření] = \"Únor\",ÚdajeOPotenciálníchZákaznících[Vážená \nprognóza],0),\"\"),\"\")","v":{"v":20000,"d":"20,000 Kč"}},{"$f":"IFERROR(IF(ÚdajeOPotenciálníchZákaznících[Předpovídané \nuzavření] <>\"\",IF(ÚdajeOPotenciálníchZákaznících[Předpovídané \nuzavření] = \"Březen\",ÚdajeOPotenciálníchZákaznících[Vážená \nprognóza],0),\"\"),\"\")","v":{"v":0,"d":"0 Kč"}},{"$f":"IFERROR(IF(ÚdajeOPotenciálníchZákaznících[Předpovídané \nuzavření] <>\"\",IF(ÚdajeOPotenciálníchZákaznících[Předpovídané \nuzavření] = \"Duben\",ÚdajeOPotenciálníchZákaznících[Vážená \nprognóza],0),\"\"),\"\")","v":{"v":0,"d":"0 Kč"}},{"$f":"IFERROR(IF(ÚdajeOPotenciálníchZákaznících[Předpovídané \nuzavření] <>\"\",IF(ÚdajeOPotenciálníchZákaznících[Předpovídané \nuzavření] = \"Květen\",ÚdajeOPotenciálníchZákaznících[Vážená \nprognóza],0),\"\"),\"\")","v":{"v":0,"d":"0 Kč"}},{"$f":"IFERROR(IF(ÚdajeOPotenciálníchZákaznících[Předpovídané \nuzavření] <>\"\",IF(ÚdajeOPotenciálníchZákaznících[Předpovídané \nuzavření] = \"Červen\",ÚdajeOPotenciálníchZákaznících[Vážená \nprognóza],0),\"\"),\"\")","v":{"v":0,"d":"0 Kč"}},{"$f":"IFERROR(IF(ÚdajeOPotenciálníchZákaznících[Předpovídané \nuzavření] <>\"\",IF(ÚdajeOPotenciálníchZákaznících[Předpovídané \nuzavření] = \"Červenec\",ÚdajeOPotenciálníchZákaznících[Vážená \nprognóza],0),\"\"),\"\")","v":{"v":0,"d":"0 Kč"}},{"$f":"IFERROR(IF(ÚdajeOPotenciálníchZákaznících[Předpovídané \nuzavření] <>\"\",IF(ÚdajeOPotenciálníchZákaznících[Předpovídané \nuzavření] = \"Srpen\",ÚdajeOPotenciálníchZákaznících[Vážená \nprognóza],0),\"\"),\"\")","v":{"v":0,"d":"0 Kč"}},{"$f":"IFERROR(IF(ÚdajeOPotenciálníchZákaznících[Předpovídané \nuzavření] <>\"\",IF(ÚdajeOPotenciálníchZákaznících[Předpovídané \nuzavření] = \"Září\",ÚdajeOPotenciálníchZákaznících[Vážená \nprognóza],0),\"\"),\"\")","v":{"v":0,"d":"0 Kč"}},{"$f":"IFERROR(IF(ÚdajeOPotenciálníchZákaznících[Předpovídané \nuzavření] <>\"\",IF(ÚdajeOPotenciálníchZákaznících[Předpovídané \nuzavření] = \"Říjen\",ÚdajeOPotenciálníchZákaznících[Vážená \nprognóza],0),\"\"),\"\")","v":{"v":0,"d":"0 Kč"}},{"$f":"IFERROR(IF(ÚdajeOPotenciálníchZákaznících[Předpovídané \nuzavření] <>\"\",IF(ÚdajeOPotenciálníchZákaznících[Předpovídané \nuzavření] = \"Listopad\",ÚdajeOPotenciálníchZákaznících[Vážená \nprognóza],0),\"\"),\"\")","v":{"v":0,"d":"0 Kč"}},{"$f":"IFERROR(IF(ÚdajeOPotenciálníchZákaznících[Předpovídané \nuzavření] <>\"\",IF(ÚdajeOPotenciálníchZákaznících[Předpovídané \nuzavření] = \"Prosinec\",ÚdajeOPotenciálníchZákaznících[Vážená \nprognóza],0),\"\"),\"\")","v":{"v":0,"d":"0 Kč"}}]
[null,{"$f":"IFERROR(IF(AND(ÚdajeOPotenciálníchZákaznících[Název potenciálního zákazníka] <> \"\", ROW(PrognózaProdejů[Název potenciálního zákazníka])<>PosledníPoložka),ÚdajeOPotenciálníchZákaznících[Název potenciálního zákazníka], \"\"),\"\")","v":"Alpine Ski House"},{"$f":"IFERROR(IF(ÚdajeOPotenciálníchZákaznících[Předpovídané \nuzavření] <>\"\",IF(ÚdajeOPotenciálníchZákaznících[Předpovídané \nuzavření]= \"Leden\",ÚdajeOPotenciálníchZákaznících[Vážená \nprognóza],0),\"\"),\"\")","v":{"v":0,"d":"0 Kč"}},{"$f":"IFERROR(IF(ÚdajeOPotenciálníchZákaznících[Předpovídané \nuzavření] <>\"\",IF(ÚdajeOPotenciálníchZákaznících[Předpovídané \nuzavření] = \"Únor\",ÚdajeOPotenciálníchZákaznících[Vážená \nprognóza],0),\"\"),\"\")","v":{"v":0,"d":"0 Kč"}},{"$f":"IFERROR(IF(ÚdajeOPotenciálníchZákaznících[Předpovídané \nuzavření] <>\"\",IF(ÚdajeOPotenciálníchZákaznících[Předpovídané \nuzavření] = \"Březen\",ÚdajeOPotenciálníchZákaznících[Vážená \nprognóza],0),\"\"),\"\")","v":{"v":20000,"d":"20,000 Kč"}},{"$f":"IFERROR(IF(ÚdajeOPotenciálníchZákaznících[Předpovídané \nuzavření] <>\"\",IF(ÚdajeOPotenciálníchZákaznících[Předpovídané \nuzavření] = \"Duben\",ÚdajeOPotenciálníchZákaznících[Vážená \nprognóza],0),\"\"),\"\")","v":{"v":0,"d":"0 Kč"}},{"$f":"IFERROR(IF(ÚdajeOPotenciálníchZákaznících[Předpovídané \nuzavření] <>\"\",IF(ÚdajeOPotenciálníchZákaznících[Předpovídané \nuzavření] = \"Květen\",ÚdajeOPotenciálníchZákaznících[Vážená \nprognóza],0),\"\"),\"\")","v":{"v":0,"d":"0 Kč"}},{"$f":"IFERROR(IF(ÚdajeOPotenciálníchZákaznících[Předpovídané \nuzavření] <>\"\",IF(ÚdajeOPotenciálníchZákaznících[Předpovídané \nuzavření] = \"Červen\",ÚdajeOPotenciálníchZákaznících[Vážená \nprognóza],0),\"\"),\"\")","v":{"v":0,"d":"0 Kč"}},{"$f":"IFERROR(IF(ÚdajeOPotenciálníchZákaznících[Předpovídané \nuzavření] <>\"\",IF(ÚdajeOPotenciálníchZákaznících[Předpovídané \nuzavření] = \"Červenec\",ÚdajeOPotenciálníchZákaznících[Vážená \nprognóza],0),\"\"),\"\")","v":{"v":0,"d":"0 Kč"}},{"$f":"IFERROR(IF(ÚdajeOPotenciálníchZákaznících[Předpovídané \nuzavření] <>\"\",IF(ÚdajeOPotenciálníchZákaznících[Předpovídané \nuzavření] = \"Srpen\",ÚdajeOPotenciálníchZákaznících[Vážená \nprognóza],0),\"\"),\"\")","v":{"v":0,"d":"0 Kč"}},{"$f":"IFERROR(IF(ÚdajeOPotenciálníchZákaznících[Předpovídané \nuzavření] <>\"\",IF(ÚdajeOPotenciálníchZákaznících[Předpovídané \nuzavření] = \"Září\",ÚdajeOPotenciálníchZákaznících[Vážená \nprognóza],0),\"\"),\"\")","v":{"v":0,"d":"0 Kč"}},{"$f":"IFERROR(IF(ÚdajeOPotenciálníchZákaznících[Předpovídané \nuzavření] <>\"\",IF(ÚdajeOPotenciálníchZákaznících[Předpovídané \nuzavření] = \"Říjen\",ÚdajeOPotenciálníchZákaznících[Vážená \nprognóza],0),\"\"),\"\")","v":{"v":0,"d":"0 Kč"}},{"$f":"IFERROR(IF(ÚdajeOPotenciálníchZákaznících[Předpovídané \nuzavření] <>\"\",IF(ÚdajeOPotenciálníchZákaznících[Předpovídané \nuzavření] = \"Listopad\",ÚdajeOPotenciálníchZákaznících[Vážená \nprognóza],0),\"\"),\"\")","v":{"v":0,"d":"0 Kč"}},{"$f":"IFERROR(IF(ÚdajeOPotenciálníchZákaznících[Předpovídané \nuzavření] <>\"\",IF(ÚdajeOPotenciálníchZákaznících[Předpovídané \nuzavření] = \"Prosinec\",ÚdajeOPotenciálníchZákaznících[Vážená \nprognóza],0),\"\"),\"\")","v":{"v":0,"d":"0 Kč"}}]
[null,{"$f":"IFERROR(IF(AND(ÚdajeOPotenciálníchZákaznících[Název potenciálního zákazníka] <> \"\", ROW(PrognózaProdejů[Název potenciálního zákazníka])<>PosledníPoložka),ÚdajeOPotenciálníchZákaznících[Název potenciálního zákazníka], \"\"),\"\")","v":""},{"$f":"IFERROR(IF(ÚdajeOPotenciálníchZákaznících[Předpovídané \nuzavření] <>\"\",IF(ÚdajeOPotenciálníchZákaznících[Předpovídané \nuzavření]= \"Leden\",ÚdajeOPotenciálníchZákaznících[Vážená \nprognóza],0),\"\"),\"\")","v":""},{"$f":"IFERROR(IF(ÚdajeOPotenciálníchZákaznících[Předpovídané \nuzavření] <>\"\",IF(ÚdajeOPotenciálníchZákaznících[Předpovídané \nuzavření] = \"Únor\",ÚdajeOPotenciálníchZákaznících[Vážená \nprognóza],0),\"\"),\"\")","v":""},{"$f":"IFERROR(IF(ÚdajeOPotenciálníchZákaznících[Předpovídané \nuzavření] <>\"\",IF(ÚdajeOPotenciálníchZákaznících[Předpovídané \nuzavření] = \"Březen\",ÚdajeOPotenciálníchZákaznících[Vážená \nprognóza],0),\"\"),\"\")","v":""},{"$f":"IFERROR(IF(ÚdajeOPotenciálníchZákaznících[Předpovídané \nuzavření] <>\"\",IF(ÚdajeOPotenciálníchZákaznících[Předpovídané \nuzavření] = \"Duben\",ÚdajeOPotenciálníchZákaznících[Vážená \nprognóza],0),\"\"),\"\")","v":""},{"$f":"IFERROR(IF(ÚdajeOPotenciálníchZákaznících[Předpovídané \nuzavření] <>\"\",IF(ÚdajeOPotenciálníchZákaznících[Předpovídané \nuzavření] = \"Květen\",ÚdajeOPotenciálníchZákaznících[Vážená \nprognóza],0),\"\"),\"\")","v":""},{"$f":"IFERROR(IF(ÚdajeOPotenciálníchZákaznících[Předpovídané \nuzavření] <>\"\",IF(ÚdajeOPotenciálníchZákaznících[Předpovídané \nuzavření] = \"Červen\",ÚdajeOPotenciálníchZákaznících[Vážená \nprognóza],0),\"\"),\"\")","v":""},{"$f":"IFERROR(IF(ÚdajeOPotenciálníchZákaznících[Předpovídané \nuzavření] <>\"\",IF(ÚdajeOPotenciálníchZákaznících[Předpovídané \nuzavření] = \"Červenec\",ÚdajeOPotenciálníchZákaznících[Vážená \nprognóza],0),\"\"),\"\")","v":""},{"$f":"IFERROR(IF(ÚdajeOPotenciálníchZákaznících[Předpovídané \nuzavření] <>\"\",IF(ÚdajeOPotenciálníchZákaznících[Předpovídané \nuzavření] = \"Srpen\",ÚdajeOPotenciálníchZákaznících[Vážená \nprognóza],0),\"\"),\"\")","v":""},{"$f":"IFERROR(IF(ÚdajeOPotenciálníchZákaznících[Předpovídané \nuzavření] <>\"\",IF(ÚdajeOPotenciálníchZákaznících[Předpovídané \nuzavření] = \"Září\",ÚdajeOPotenciálníchZákaznících[Vážená \nprognóza],0),\"\"),\"\")","v":""},{"$f":"IFERROR(IF(ÚdajeOPotenciálníchZákaznících[Předpovídané \nuzavření] <>\"\",IF(ÚdajeOPotenciálníchZákaznících[Předpovídané \nuzavření] = \"Říjen\",ÚdajeOPotenciálníchZákaznících[Vážená \nprognóza],0),\"\"),\"\")","v":""},{"$f":"IFERROR(IF(ÚdajeOPotenciálníchZákaznících[Předpovídané \nuzavření] <>\"\",IF(ÚdajeOPotenciálníchZákaznících[Předpovídané \nuzavření] = \"Listopad\",ÚdajeOPotenciálníchZákaznících[Vážená \nprognóza],0),\"\"),\"\")","v":""},{"$f":"IFERROR(IF(ÚdajeOPotenciálníchZákaznících[Předpovídané \nuzavření] <>\"\",IF(ÚdajeOPotenciálníchZákaznících[Předpovídané \nuzavření] = \"Prosinec\",ÚdajeOPotenciálníchZákaznících[Vážená \nprognóza],0),\"\"),\"\")","v":""}]
[null,{"$f":"IFERROR(IF(AND(ÚdajeOPotenciálníchZákaznících[Název potenciálního zákazníka] <> \"\", ROW(PrognózaProdejů[Název potenciálního zákazníka])<>PosledníPoložka),ÚdajeOPotenciálníchZákaznících[Název potenciálního zákazníka], \"\"),\"\")","v":""},{"$f":"IFERROR(IF(ÚdajeOPotenciálníchZákaznících[Předpovídané \nuzavření] <>\"\",IF(ÚdajeOPotenciálníchZákaznících[Předpovídané \nuzavření]= \"Leden\",ÚdajeOPotenciálníchZákaznících[Vážená \nprognóza],0),\"\"),\"\")","v":""},{"$f":"IFERROR(IF(ÚdajeOPotenciálníchZákaznících[Předpovídané \nuzavření] <>\"\",IF(ÚdajeOPotenciálníchZákaznících[Předpovídané \nuzavření] = \"Únor\",ÚdajeOPotenciálníchZákaznících[Vážená \nprognóza],0),\"\"),\"\")","v":""},{"$f":"IFERROR(IF(ÚdajeOPotenciálníchZákaznících[Předpovídané \nuzavření] <>\"\",IF(ÚdajeOPotenciálníchZákaznících[Předpovídané \nuzavření] = \"Březen\",ÚdajeOPotenciálníchZákaznících[Vážená \nprognóza],0),\"\"),\"\")","v":""},{"$f":"IFERROR(IF(ÚdajeOPotenciálníchZákaznících[Předpovídané \nuzavření] <>\"\",IF(ÚdajeOPotenciálníchZákaznících[Předpovídané \nuzavření] = \"Duben\",ÚdajeOPotenciálníchZákaznících[Vážená \nprognóza],0),\"\"),\"\")","v":""},{"$f":"IFERROR(IF(ÚdajeOPotenciálníchZákaznících[Předpovídané \nuzavření] <>\"\",IF(ÚdajeOPotenciálníchZákaznících[Předpovídané \nuzavření] = \"Květen\",ÚdajeOPotenciálníchZákaznících[Vážená \nprognóza],0),\"\"),\"\")","v":""},{"$f":"IFERROR(IF(ÚdajeOPotenciálníchZákaznících[Předpovídané \nuzavření] <>\"\",IF(ÚdajeOPotenciálníchZákaznících[Předpovídané \nuzavření] = \"Červen\",ÚdajeOPotenciálníchZákaznících[Vážená \nprognóza],0),\"\"),\"\")","v":""},{"$f":"IFERROR(IF(ÚdajeOPotenciálníchZákaznících[Předpovídané \nuzavření] <>\"\",IF(ÚdajeOPotenciálníchZákaznících[Předpovídané \nuzavření] = \"Červenec\",ÚdajeOPotenciálníchZákaznících[Vážená \nprognóza],0),\"\"),\"\")","v":""},{"$f":"IFERROR(IF(ÚdajeOPotenciálníchZákaznících[Předpovídané \nuzavření] <>\"\",IF(ÚdajeOPotenciálníchZákaznících[Předpovídané \nuzavření] = \"Srpen\",ÚdajeOPotenciálníchZákaznících[Vážená \nprognóza],0),\"\"),\"\")","v":""},{"$f":"IFERROR(IF(ÚdajeOPotenciálníchZákaznících[Předpovídané \nuzavření] <>\"\",IF(ÚdajeOPotenciálníchZákaznících[Předpovídané \nuzavření] = \"Září\",ÚdajeOPotenciálníchZákaznících[Vážená \nprognóza],0),\"\"),\"\")","v":""},{"$f":"IFERROR(IF(ÚdajeOPotenciálníchZákaznících[Předpovídané \nuzavření] <>\"\",IF(ÚdajeOPotenciálníchZákaznících[Předpovídané \nuzavření] = \"Říjen\",ÚdajeOPotenciálníchZákaznících[Vážená \nprognóza],0),\"\"),\"\")","v":""},{"$f":"IFERROR(IF(ÚdajeOPotenciálníchZákaznících[Předpovídané \nuzavření] <>\"\",IF(ÚdajeOPotenciálníchZákaznících[Předpovídané \nuzavření] = \"Listopad\",ÚdajeOPotenciálníchZákaznících[Vážená \nprognóza],0),\"\"),\"\")","v":""},{"$f":"IFERROR(IF(ÚdajeOPotenciálníchZákaznících[Předpovídané \nuzavření] <>\"\",IF(ÚdajeOPotenciálníchZákaznících[Předpovídané \nuzavření] = \"Prosinec\",ÚdajeOPotenciálníchZákaznících[Vážená \nprognóza],0),\"\"),\"\")","v":""}]
[null,{"$f":"IFERROR(IF(AND(ÚdajeOPotenciálníchZákaznících[Název potenciálního zákazníka] <> \"\", ROW(PrognózaProdejů[Název potenciálního zákazníka])<>PosledníPoložka),ÚdajeOPotenciálníchZákaznících[Název potenciálního zákazníka], \"\"),\"\")","v":""},{"$f":"IFERROR(IF(ÚdajeOPotenciálníchZákaznících[Předpovídané \nuzavření] <>\"\",IF(ÚdajeOPotenciálníchZákaznících[Předpovídané \nuzavření]= \"Leden\",ÚdajeOPotenciálníchZákaznících[Vážená \nprognóza],0),\"\"),\"\")","v":""},{"$f":"IFERROR(IF(ÚdajeOPotenciálníchZákaznících[Předpovídané \nuzavření] <>\"\",IF(ÚdajeOPotenciálníchZákaznících[Předpovídané \nuzavření] = \"Únor\",ÚdajeOPotenciálníchZákaznících[Vážená \nprognóza],0),\"\"),\"\")","v":""},{"$f":"IFERROR(IF(ÚdajeOPotenciálníchZákaznících[Předpovídané \nuzavření] <>\"\",IF(ÚdajeOPotenciálníchZákaznících[Předpovídané \nuzavření] = \"Březen\",ÚdajeOPotenciálníchZákaznících[Vážená \nprognóza],0),\"\"),\"\")","v":""},{"$f":"IFERROR(IF(ÚdajeOPotenciálníchZákaznících[Předpovídané \nuzavření] <>\"\",IF(ÚdajeOPotenciálníchZákaznících[Předpovídané \nuzavření] = \"Duben\",ÚdajeOPotenciálníchZákaznících[Vážená \nprognóza],0),\"\"),\"\")","v":""},{"$f":"IFERROR(IF(ÚdajeOPotenciálníchZákaznících[Předpovídané \nuzavření] <>\"\",IF(ÚdajeOPotenciálníchZákaznících[Předpovídané \nuzavření] = \"Květen\",ÚdajeOPotenciálníchZákaznících[Vážená \nprognóza],0),\"\"),\"\")","v":""},{"$f":"IFERROR(IF(ÚdajeOPotenciálníchZákaznících[Předpovídané \nuzavření] <>\"\",IF(ÚdajeOPotenciálníchZákaznících[Předpovídané \nuzavření] = \"Červen\",ÚdajeOPotenciálníchZákaznících[Vážená \nprognóza],0),\"\"),\"\")","v":""},{"$f":"IFERROR(IF(ÚdajeOPotenciálníchZákaznících[Předpovídané \nuzavření] <>\"\",IF(ÚdajeOPotenciálníchZákaznících[Předpovídané \nuzavření] = \"Červenec\",ÚdajeOPotenciálníchZákaznících[Vážená \nprognóza],0),\"\"),\"\")","v":""},{"$f":"IFERROR(IF(ÚdajeOPotenciálníchZákaznících[Předpovídané \nuzavření] <>\"\",IF(ÚdajeOPotenciálníchZákaznících[Předpovídané \nuzavření] = \"Srpen\",ÚdajeOPotenciálníchZákaznících[Vážená \nprognóza],0),\"\"),\"\")","v":""},{"$f":"IFERROR(IF(ÚdajeOPotenciálníchZákaznících[Předpovídané \nuzavření] <>\"\",IF(ÚdajeOPotenciálníchZákaznících[Předpovídané \nuzavření] = \"Září\",ÚdajeOPotenciálníchZákaznících[Vážená \nprognóza],0),\"\"),\"\")","v":""},{"$f":"IFERROR(IF(ÚdajeOPotenciálníchZákaznících[Předpovídané \nuzavření] <>\"\",IF(ÚdajeOPotenciálníchZákaznících[Předpovídané \nuzavření] = \"Říjen\",ÚdajeOPotenciálníchZákaznících[Vážená \nprognóza],0),\"\"),\"\")","v":""},{"$f":"IFERROR(IF(ÚdajeOPotenciálníchZákaznících[Předpovídané \nuzavření] <>\"\",IF(ÚdajeOPotenciálníchZákaznících[Předpovídané \nuzavření] = \"Listopad\",ÚdajeOPotenciálníchZákaznících[Vážená \nprognóza],0),\"\"),\"\")","v":""},{"$f":"IFERROR(IF(ÚdajeOPotenciálníchZákaznících[Předpovídané \nuzavření] <>\"\",IF(ÚdajeOPotenciálníchZákaznících[Předpovídané \nuzavření] = \"Prosinec\",ÚdajeOPotenciálníchZákaznících[Vážená \nprognóza],0),\"\"),\"\")","v":""}]
[null,{"$f":"IFERROR(IF(AND(ÚdajeOPotenciálníchZákaznících[Název potenciálního zákazníka] <> \"\", ROW(PrognózaProdejů[Název potenciálního zákazníka])<>PosledníPoložka),ÚdajeOPotenciálníchZákaznících[Název potenciálního zákazníka], \"\"),\"\")","v":""},{"$f":"IFERROR(IF(ÚdajeOPotenciálníchZákaznících[Předpovídané \nuzavření] <>\"\",IF(ÚdajeOPotenciálníchZákaznících[Předpovídané \nuzavření]= \"Leden\",ÚdajeOPotenciálníchZákaznících[Vážená \nprognóza],0),\"\"),\"\")","v":""},{"$f":"IFERROR(IF(ÚdajeOPotenciálníchZákaznících[Předpovídané \nuzavření] <>\"\",IF(ÚdajeOPotenciálníchZákaznících[Předpovídané \nuzavření] = \"Únor\",ÚdajeOPotenciálníchZákaznících[Vážená \nprognóza],0),\"\"),\"\")","v":""},{"$f":"IFERROR(IF(ÚdajeOPotenciálníchZákaznících[Předpovídané \nuzavření] <>\"\",IF(ÚdajeOPotenciálníchZákaznících[Předpovídané \nuzavření] = \"Březen\",ÚdajeOPotenciálníchZákaznících[Vážená \nprognóza],0),\"\"),\"\")","v":""},{"$f":"IFERROR(IF(ÚdajeOPotenciálníchZákaznících[Předpovídané \nuzavření] <>\"\",IF(ÚdajeOPotenciálníchZákaznících[Předpovídané \nuzavření] = \"Duben\",ÚdajeOPotenciálníchZákaznících[Vážená \nprognóza],0),\"\"),\"\")","v":""},{"$f":"IFERROR(IF(ÚdajeOPotenciálníchZákaznících[Předpovídané \nuzavření] <>\"\",IF(ÚdajeOPotenciálníchZákaznících[Předpovídané \nuzavření] = \"Květen\",ÚdajeOPotenciálníchZákaznících[Vážená \nprognóza],0),\"\"),\"\")","v":""},{"$f":"IFERROR(IF(ÚdajeOPotenciálníchZákaznících[Předpovídané \nuzavření] <>\"\",IF(ÚdajeOPotenciálníchZákaznících[Předpovídané \nuzavření] = \"Červen\",ÚdajeOPotenciálníchZákaznících[Vážená \nprognóza],0),\"\"),\"\")","v":""},{"$f":"IFERROR(IF(ÚdajeOPotenciálníchZákaznících[Předpovídané \nuzavření] <>\"\",IF(ÚdajeOPotenciálníchZákaznících[Předpovídané \nuzavření] = \"Červenec\",ÚdajeOPotenciálníchZákaznících[Vážená \nprognóza],0),\"\"),\"\")","v":""},{"$f":"IFERROR(IF(ÚdajeOPotenciálníchZákaznících[Předpovídané \nuzavření] <>\"\",IF(ÚdajeOPotenciálníchZákaznících[Předpovídané \nuzavření] = \"Srpen\",ÚdajeOPotenciálníchZákaznících[Vážená \nprognóza],0),\"\"),\"\")","v":""},{"$f":"IFERROR(IF(ÚdajeOPotenciálníchZákaznících[Předpovídané \nuzavření] <>\"\",IF(ÚdajeOPotenciálníchZákaznících[Předpovídané \nuzavření] = \"Září\",ÚdajeOPotenciálníchZákaznících[Vážená \nprognóza],0),\"\"),\"\")","v":""},{"$f":"IFERROR(IF(ÚdajeOPotenciálníchZákaznících[Předpovídané \nuzavření] <>\"\",IF(ÚdajeOPotenciálníchZákaznících[Předpovídané \nuzavření] = \"Říjen\",ÚdajeOPotenciálníchZákaznících[Vážená \nprognóza],0),\"\"),\"\")","v":""},{"$f":"IFERROR(IF(ÚdajeOPotenciálníchZákaznících[Předpovídané \nuzavření] <>\"\",IF(ÚdajeOPotenciálníchZákaznících[Předpovídané \nuzavření] = \"Listopad\",ÚdajeOPotenciálníchZákaznících[Vážená \nprognóza],0),\"\"),\"\")","v":""},{"$f":"IFERROR(IF(ÚdajeOPotenciálníchZákaznících[Předpovídané \nuzavření] <>\"\",IF(ÚdajeOPotenciálníchZákaznících[Předpovídané \nuzavření] = \"Prosinec\",ÚdajeOPotenciálníchZákaznících[Vážená \nprognóza],0),\"\"),\"\")","v":""}]
[null,{"$f":"IFERROR(IF(AND(ÚdajeOPotenciálníchZákaznících[Název potenciálního zákazníka] <> \"\", ROW(PrognózaProdejů[Název potenciálního zákazníka])<>PosledníPoložka),ÚdajeOPotenciálníchZákaznících[Název potenciálního zákazníka], \"\"),\"\")","v":""},{"$f":"IFERROR(IF(ÚdajeOPotenciálníchZákaznících[Předpovídané \nuzavření] <>\"\",IF(ÚdajeOPotenciálníchZákaznících[Předpovídané \nuzavření]= \"Leden\",ÚdajeOPotenciálníchZákaznících[Vážená \nprognóza],0),\"\"),\"\")","v":""},{"$f":"IFERROR(IF(ÚdajeOPotenciálníchZákaznících[Předpovídané \nuzavření] <>\"\",IF(ÚdajeOPotenciálníchZákaznících[Předpovídané \nuzavření] = \"Únor\",ÚdajeOPotenciálníchZákaznících[Vážená \nprognóza],0),\"\"),\"\")","v":""},{"$f":"IFERROR(IF(ÚdajeOPotenciálníchZákaznících[Předpovídané \nuzavření] <>\"\",IF(ÚdajeOPotenciálníchZákaznících[Předpovídané \nuzavření] = \"Březen\",ÚdajeOPotenciálníchZákaznících[Vážená \nprognóza],0),\"\"),\"\")","v":""},{"$f":"IFERROR(IF(ÚdajeOPotenciálníchZákaznících[Předpovídané \nuzavření] <>\"\",IF(ÚdajeOPotenciálníchZákaznících[Předpovídané \nuzavření] = \"Duben\",ÚdajeOPotenciálníchZákaznících[Vážená \nprognóza],0),\"\"),\"\")","v":""},{"$f":"IFERROR(IF(ÚdajeOPotenciálníchZákaznících[Předpovídané \nuzavření] <>\"\",IF(ÚdajeOPotenciálníchZákaznících[Předpovídané \nuzavření] = \"Květen\",ÚdajeOPotenciálníchZákaznících[Vážená \nprognóza],0),\"\"),\"\")","v":""},{"$f":"IFERROR(IF(ÚdajeOPotenciálníchZákaznících[Předpovídané \nuzavření] <>\"\",IF(ÚdajeOPotenciálníchZákaznících[Předpovídané \nuzavření] = \"Červen\",ÚdajeOPotenciálníchZákaznících[Vážená \nprognóza],0),\"\"),\"\")","v":""},{"$f":"IFERROR(IF(ÚdajeOPotenciálníchZákaznících[Předpovídané \nuzavření] <>\"\",IF(ÚdajeOPotenciálníchZákaznících[Předpovídané \nuzavření] = \"Červenec\",ÚdajeOPotenciálníchZákaznících[Vážená \nprognóza],0),\"\"),\"\")","v":""},{"$f":"IFERROR(IF(ÚdajeOPotenciálníchZákaznících[Předpovídané \nuzavření] <>\"\",IF(ÚdajeOPotenciálníchZákaznících[Předpovídané \nuzavření] = \"Srpen\",ÚdajeOPotenciálníchZákaznících[Vážená \nprognóza],0),\"\"),\"\")","v":""},{"$f":"IFERROR(IF(ÚdajeOPotenciálníchZákaznících[Předpovídané \nuzavření] <>\"\",IF(ÚdajeOPotenciálníchZákaznících[Předpovídané \nuzavření] = \"Září\",ÚdajeOPotenciálníchZákaznících[Vážená \nprognóza],0),\"\"),\"\")","v":""},{"$f":"IFERROR(IF(ÚdajeOPotenciálníchZákaznících[Předpovídané \nuzavření] <>\"\",IF(ÚdajeOPotenciálníchZákaznících[Předpovídané \nuzavření] = \"Říjen\",ÚdajeOPotenciálníchZákaznících[Vážená \nprognóza],0),\"\"),\"\")","v":""},{"$f":"IFERROR(IF(ÚdajeOPotenciálníchZákaznících[Předpovídané \nuzavření] <>\"\",IF(ÚdajeOPotenciálníchZákaznících[Předpovídané \nuzavření] = \"Listopad\",ÚdajeOPotenciálníchZákaznících[Vážená \nprognóza],0),\"\"),\"\")","v":""},{"$f":"IFERROR(IF(ÚdajeOPotenciálníchZákaznících[Předpovídané \nuzavření] <>\"\",IF(ÚdajeOPotenciálníchZákaznících[Předpovídané \nuzavření] = \"Prosinec\",ÚdajeOPotenciálníchZákaznících[Vážená \nprognóza],0),\"\"),\"\")","v":""}]
[null,{"$f":"IFERROR(IF(AND(ÚdajeOPotenciálníchZákaznících[Název potenciálního zákazníka] <> \"\", ROW(PrognózaProdejů[Název potenciálního zákazníka])<>PosledníPoložka),ÚdajeOPotenciálníchZákaznících[Název potenciálního zákazníka], \"\"),\"\")","v":""},{"$f":"IFERROR(IF(ÚdajeOPotenciálníchZákaznících[Předpovídané \nuzavření] <>\"\",IF(ÚdajeOPotenciálníchZákaznících[Předpovídané \nuzavření]= \"Leden\",ÚdajeOPotenciálníchZákaznících[Vážená \nprognóza],0),\"\"),\"\")","v":""},{"$f":"IFERROR(IF(ÚdajeOPotenciálníchZákaznících[Předpovídané \nuzavření] <>\"\",IF(ÚdajeOPotenciálníchZákaznících[Předpovídané \nuzavření] = \"Únor\",ÚdajeOPotenciálníchZákaznících[Vážená \nprognóza],0),\"\"),\"\")","v":""},{"$f":"IFERROR(IF(ÚdajeOPotenciálníchZákaznících[Předpovídané \nuzavření] <>\"\",IF(ÚdajeOPotenciálníchZákaznících[Předpovídané \nuzavření] = \"Březen\",ÚdajeOPotenciálníchZákaznících[Vážená \nprognóza],0),\"\"),\"\")","v":""},{"$f":"IFERROR(IF(ÚdajeOPotenciálníchZákaznících[Předpovídané \nuzavření] <>\"\",IF(ÚdajeOPotenciálníchZákaznících[Předpovídané \nuzavření] = \"Duben\",ÚdajeOPotenciálníchZákaznících[Vážená \nprognóza],0),\"\"),\"\")","v":""},{"$f":"IFERROR(IF(ÚdajeOPotenciálníchZákaznících[Předpovídané \nuzavření] <>\"\",IF(ÚdajeOPotenciálníchZákaznících[Předpovídané \nuzavření] = \"Květen\",ÚdajeOPotenciálníchZákaznících[Vážená \nprognóza],0),\"\"),\"\")","v":""},{"$f":"IFERROR(IF(ÚdajeOPotenciálníchZákaznících[Předpovídané \nuzavření] <>\"\",IF(ÚdajeOPotenciálníchZákaznících[Předpovídané \nuzavření] = \"Červen\",ÚdajeOPotenciálníchZákaznících[Vážená \nprognóza],0),\"\"),\"\")","v":""},{"$f":"IFERROR(IF(ÚdajeOPotenciálníchZákaznících[Předpovídané \nuzavření] <>\"\",IF(ÚdajeOPotenciálníchZákaznících[Předpovídané \nuzavření] = \"Červenec\",ÚdajeOPotenciálníchZákaznících[Vážená \nprognóza],0),\"\"),\"\")","v":""},{"$f":"IFERROR(IF(ÚdajeOPotenciálníchZákaznících[Předpovídané \nuzavření] <>\"\",IF(ÚdajeOPotenciálníchZákaznících[Předpovídané \nuzavření] = \"Srpen\",ÚdajeOPotenciálníchZákaznících[Vážená \nprognóza],0),\"\"),\"\")","v":""},{"$f":"IFERROR(IF(ÚdajeOPotenciálníchZákaznících[Předpovídané \nuzavření] <>\"\",IF(ÚdajeOPotenciálníchZákaznících[Předpovídané \nuzavření] = \"Září\",ÚdajeOPotenciálníchZákaznících[Vážená \nprognóza],0),\"\"),\"\")","v":""},{"$f":"IFERROR(IF(ÚdajeOPotenciálníchZákaznících[Předpovídané \nuzavření] <>\"\",IF(ÚdajeOPotenciálníchZákaznících[Předpovídané \nuzavření] = \"Říjen\",ÚdajeOPotenciálníchZákaznících[Vážená \nprognóza],0),\"\"),\"\")","v":""},{"$f":"IFERROR(IF(ÚdajeOPotenciálníchZákaznících[Předpovídané \nuzavření] <>\"\",IF(ÚdajeOPotenciálníchZákaznících[Předpovídané \nuzavření] = \"Listopad\",ÚdajeOPotenciálníchZákaznících[Vážená \nprognóza],0),\"\"),\"\")","v":""},{"$f":"IFERROR(IF(ÚdajeOPotenciálníchZákaznících[Předpovídané \nuzavření] <>\"\",IF(ÚdajeOPotenciálníchZákaznících[Předpovídané \nuzavření] = \"Prosinec\",ÚdajeOPotenciálníchZákaznících[Vážená \nprognóza],0),\"\"),\"\")","v":""}]
[null,{"$f":"IFERROR(IF(AND(ÚdajeOPotenciálníchZákaznících[Název potenciálního zákazníka] <> \"\", ROW(PrognózaProdejů[Název potenciálního zákazníka])<>PosledníPoložka),ÚdajeOPotenciálníchZákaznících[Název potenciálního zákazníka], \"\"),\"\")","v":""},{"$f":"IFERROR(IF(ÚdajeOPotenciálníchZákaznících[Předpovídané \nuzavření] <>\"\",IF(ÚdajeOPotenciálníchZákaznících[Předpovídané \nuzavření]= \"Leden\",ÚdajeOPotenciálníchZákaznících[Vážená \nprognóza],0),\"\"),\"\")","v":""},{"$f":"IFERROR(IF(ÚdajeOPotenciálníchZákaznících[Předpovídané \nuzavření] <>\"\",IF(ÚdajeOPotenciálníchZákaznících[Předpovídané \nuzavření] = \"Únor\",ÚdajeOPotenciálníchZákaznících[Vážená \nprognóza],0),\"\"),\"\")","v":""},{"$f":"IFERROR(IF(ÚdajeOPotenciálníchZákaznících[Předpovídané \nuzavření] <>\"\",IF(ÚdajeOPotenciálníchZákaznících[Předpovídané \nuzavření] = \"Březen\",ÚdajeOPotenciálníchZákaznících[Vážená \nprognóza],0),\"\"),\"\")","v":""},{"$f":"IFERROR(IF(ÚdajeOPotenciálníchZákaznících[Předpovídané \nuzavření] <>\"\",IF(ÚdajeOPotenciálníchZákaznících[Předpovídané \nuzavření] = \"Duben\",ÚdajeOPotenciálníchZákaznících[Vážená \nprognóza],0),\"\"),\"\")","v":""},{"$f":"IFERROR(IF(ÚdajeOPotenciálníchZákaznících[Předpovídané \nuzavření] <>\"\",IF(ÚdajeOPotenciálníchZákaznících[Předpovídané \nuzavření] = \"Květen\",ÚdajeOPotenciálníchZákaznících[Vážená \nprognóza],0),\"\"),\"\")","v":""},{"$f":"IFERROR(IF(ÚdajeOPotenciálníchZákaznících[Předpovídané \nuzavření] <>\"\",IF(ÚdajeOPotenciálníchZákaznících[Předpovídané \nuzavření] = \"Červen\",ÚdajeOPotenciálníchZákaznících[Vážená \nprognóza],0),\"\"),\"\")","v":""},{"$f":"IFERROR(IF(ÚdajeOPotenciálníchZákaznících[Předpovídané \nuzavření] <>\"\",IF(ÚdajeOPotenciálníchZákaznících[Předpovídané \nuzavření] = \"Červenec\",ÚdajeOPotenciálníchZákaznících[Vážená \nprognóza],0),\"\"),\"\")","v":""},{"$f":"IFERROR(IF(ÚdajeOPotenciálníchZákaznících[Předpovídané \nuzavření] <>\"\",IF(ÚdajeOPotenciálníchZákaznících[Předpovídané \nuzavření] = \"Srpen\",ÚdajeOPotenciálníchZákaznících[Vážená \nprognóza],0),\"\"),\"\")","v":""},{"$f":"IFERROR(IF(ÚdajeOPotenciálníchZákaznících[Předpovídané \nuzavření] <>\"\",IF(ÚdajeOPotenciálníchZákaznících[Předpovídané \nuzavření] = \"Září\",ÚdajeOPotenciálníchZákaznících[Vážená \nprognóza],0),\"\"),\"\")","v":""},{"$f":"IFERROR(IF(ÚdajeOPotenciálníchZákaznících[Předpovídané \nuzavření] <>\"\",IF(ÚdajeOPotenciálníchZákaznících[Předpovídané \nuzavření] = \"Říjen\",ÚdajeOPotenciálníchZákaznících[Vážená \nprognóza],0),\"\"),\"\")","v":""},{"$f":"IFERROR(IF(ÚdajeOPotenciálníchZákaznících[Předpovídané \nuzavření] <>\"\",IF(ÚdajeOPotenciálníchZákaznících[Předpovídané \nuzavření] = \"Listopad\",ÚdajeOPotenciálníchZákaznících[Vážená \nprognóza],0),\"\"),\"\")","v":""},{"$f":"IFERROR(IF(ÚdajeOPotenciálníchZákaznících[Předpovídané \nuzavření] <>\"\",IF(ÚdajeOPotenciálníchZákaznících[Předpovídané \nuzavření] = \"Prosinec\",ÚdajeOPotenciálníchZákaznících[Vážená \nprognóza],0),\"\"),\"\")","v":""}]
[null,{"$f":"IFERROR(IF(AND(ÚdajeOPotenciálníchZákaznících[Název potenciálního zákazníka] <> \"\", ROW(PrognózaProdejů[Název potenciálního zákazníka])<>PosledníPoložka),ÚdajeOPotenciálníchZákaznících[Název potenciálního zákazníka], \"\"),\"\")","v":""},{"$f":"IFERROR(IF(ÚdajeOPotenciálníchZákaznících[Předpovídané \nuzavření] <>\"\",IF(ÚdajeOPotenciálníchZákaznících[Předpovídané \nuzavření]= \"Leden\",ÚdajeOPotenciálníchZákaznících[Vážená \nprognóza],0),\"\"),\"\")","v":""},{"$f":"IFERROR(IF(ÚdajeOPotenciálníchZákaznících[Předpovídané \nuzavření] <>\"\",IF(ÚdajeOPotenciálníchZákaznících[Předpovídané \nuzavření] = \"Únor\",ÚdajeOPotenciálníchZákaznících[Vážená \nprognóza],0),\"\"),\"\")","v":""},{"$f":"IFERROR(IF(ÚdajeOPotenciálníchZákaznících[Předpovídané \nuzavření] <>\"\",IF(ÚdajeOPotenciálníchZákaznících[Předpovídané \nuzavření] = \"Březen\",ÚdajeOPotenciálníchZákaznících[Vážená \nprognóza],0),\"\"),\"\")","v":""},{"$f":"IFERROR(IF(ÚdajeOPotenciálníchZákaznících[Předpovídané \nuzavření] <>\"\",IF(ÚdajeOPotenciálníchZákaznících[Předpovídané \nuzavření] = \"Duben\",ÚdajeOPotenciálníchZákaznících[Vážená \nprognóza],0),\"\"),\"\")","v":""},{"$f":"IFERROR(IF(ÚdajeOPotenciálníchZákaznících[Předpovídané \nuzavření] <>\"\",IF(ÚdajeOPotenciálníchZákaznících[Předpovídané \nuzavření] = \"Květen\",ÚdajeOPotenciálníchZákaznících[Vážená \nprognóza],0),\"\"),\"\")","v":""},{"$f":"IFERROR(IF(ÚdajeOPotenciálníchZákaznících[Předpovídané \nuzavření] <>\"\",IF(ÚdajeOPotenciálníchZákaznících[Předpovídané \nuzavření] = \"Červen\",ÚdajeOPotenciálníchZákaznících[Vážená \nprognóza],0),\"\"),\"\")","v":""},{"$f":"IFERROR(IF(ÚdajeOPotenciálníchZákaznících[Předpovídané \nuzavření] <>\"\",IF(ÚdajeOPotenciálníchZákaznících[Předpovídané \nuzavření] = \"Červenec\",ÚdajeOPotenciálníchZákaznících[Vážená \nprognóza],0),\"\"),\"\")","v":""},{"$f":"IFERROR(IF(ÚdajeOPotenciálníchZákaznících[Předpovídané \nuzavření] <>\"\",IF(ÚdajeOPotenciálníchZákaznících[Předpovídané \nuzavření] = \"Srpen\",ÚdajeOPotenciálníchZákaznících[Vážená \nprognóza],0),\"\"),\"\")","v":""},{"$f":"IFERROR(IF(ÚdajeOPotenciálníchZákaznících[Předpovídané \nuzavření] <>\"\",IF(ÚdajeOPotenciálníchZákaznících[Předpovídané \nuzavření] = \"Září\",ÚdajeOPotenciálníchZákaznících[Vážená \nprognóza],0),\"\"),\"\")","v":""},{"$f":"IFERROR(IF(ÚdajeOPotenciálníchZákaznících[Předpovídané \nuzavření] <>\"\",IF(ÚdajeOPotenciálníchZákaznících[Předpovídané \nuzavření] = \"Říjen\",ÚdajeOPotenciálníchZákaznících[Vážená \nprognóza],0),\"\"),\"\")","v":""},{"$f":"IFERROR(IF(ÚdajeOPotenciálníchZákaznících[Předpovídané \nuzavření] <>\"\",IF(ÚdajeOPotenciálníchZákaznících[Předpovídané \nuzavření] = \"Listopad\",ÚdajeOPotenciálníchZákaznících[Vážená \nprognóza],0),\"\"),\"\")","v":""},{"$f":"IFERROR(IF(ÚdajeOPotenciálníchZákaznících[Předpovídané \nuzavření] <>\"\",IF(ÚdajeOPotenciálníchZákaznících[Předpovídané \nuzavření] = \"Prosinec\",ÚdajeOPotenciálníchZákaznících[Vážená \nprognóza],0),\"\"),\"\")","v":""}]
[null,{"$f":"IFERROR(IF(AND(ÚdajeOPotenciálníchZákaznících[Název potenciálního zákazníka] <> \"\", ROW(PrognózaProdejů[Název potenciálního zákazníka])<>PosledníPoložka),ÚdajeOPotenciálníchZákaznících[Název potenciálního zákazníka], \"\"),\"\")","v":""},{"$f":"IFERROR(IF(ÚdajeOPotenciálníchZákaznících[Předpovídané \nuzavření] <>\"\",IF(ÚdajeOPotenciálníchZákaznících[Předpovídané \nuzavření]= \"Leden\",ÚdajeOPotenciálníchZákaznících[Vážená \nprognóza],0),\"\"),\"\")","v":""},{"$f":"IFERROR(IF(ÚdajeOPotenciálníchZákaznících[Předpovídané \nuzavření] <>\"\",IF(ÚdajeOPotenciálníchZákaznících[Předpovídané \nuzavření] = \"Únor\",ÚdajeOPotenciálníchZákaznících[Vážená \nprognóza],0),\"\"),\"\")","v":""},{"$f":"IFERROR(IF(ÚdajeOPotenciálníchZákaznících[Předpovídané \nuzavření] <>\"\",IF(ÚdajeOPotenciálníchZákaznících[Předpovídané \nuzavření] = \"Březen\",ÚdajeOPotenciálníchZákaznících[Vážená \nprognóza],0),\"\"),\"\")","v":""},{"$f":"IFERROR(IF(ÚdajeOPotenciálníchZákaznících[Předpovídané \nuzavření] <>\"\",IF(ÚdajeOPotenciálníchZákaznících[Předpovídané \nuzavření] = \"Duben\",ÚdajeOPotenciálníchZákaznících[Vážená \nprognóza],0),\"\"),\"\")","v":""},{"$f":"IFERROR(IF(ÚdajeOPotenciálníchZákaznících[Předpovídané \nuzavření] <>\"\",IF(ÚdajeOPotenciálníchZákaznících[Předpovídané \nuzavření] = \"Květen\",ÚdajeOPotenciálníchZákaznících[Vážená \nprognóza],0),\"\"),\"\")","v":""},{"$f":"IFERROR(IF(ÚdajeOPotenciálníchZákaznících[Předpovídané \nuzavření] <>\"\",IF(ÚdajeOPotenciálníchZákaznících[Předpovídané \nuzavření] = \"Červen\",ÚdajeOPotenciálníchZákaznících[Vážená \nprognóza],0),\"\"),\"\")","v":""},{"$f":"IFERROR(IF(ÚdajeOPotenciálníchZákaznících[Předpovídané \nuzavření] <>\"\",IF(ÚdajeOPotenciálníchZákaznících[Předpovídané \nuzavření] = \"Červenec\",ÚdajeOPotenciálníchZákaznících[Vážená \nprognóza],0),\"\"),\"\")","v":""},{"$f":"IFERROR(IF(ÚdajeOPotenciálníchZákaznících[Předpovídané \nuzavření] <>\"\",IF(ÚdajeOPotenciálníchZákaznících[Předpovídané \nuzavření] = \"Srpen\",ÚdajeOPotenciálníchZákaznících[Vážená \nprognóza],0),\"\"),\"\")","v":""},{"$f":"IFERROR(IF(ÚdajeOPotenciálníchZákaznících[Předpovídané \nuzavření] <>\"\",IF(ÚdajeOPotenciálníchZákaznících[Předpovídané \nuzavření] = \"Září\",ÚdajeOPotenciálníchZákaznících[Vážená \nprognóza],0),\"\"),\"\")","v":""},{"$f":"IFERROR(IF(ÚdajeOPotenciálníchZákaznících[Předpovídané \nuzavření] <>\"\",IF(ÚdajeOPotenciálníchZákaznících[Předpovídané \nuzavření] = \"Říjen\",ÚdajeOPotenciálníchZákaznících[Vážená \nprognóza],0),\"\"),\"\")","v":""},{"$f":"IFERROR(IF(ÚdajeOPotenciálníchZákaznících[Předpovídané \nuzavření] <>\"\",IF(ÚdajeOPotenciálníchZákaznících[Předpovídané \nuzavření] = \"Listopad\",ÚdajeOPotenciálníchZákaznících[Vážená \nprognóza],0),\"\"),\"\")","v":""},{"$f":"IFERROR(IF(ÚdajeOPotenciálníchZákaznících[Předpovídané \nuzavření] <>\"\",IF(ÚdajeOPotenciálníchZákaznících[Předpovídané \nuzavření] = \"Prosinec\",ÚdajeOPotenciálníchZákaznících[Vážená \nprognóza],0),\"\"),\"\")","v":""}]
[null,{"$f":"IFERROR(IF(AND(ÚdajeOPotenciálníchZákaznících[Název potenciálního zákazníka] <> \"\", ROW(PrognózaProdejů[Název potenciálního zákazníka])<>PosledníPoložka),ÚdajeOPotenciálníchZákaznících[Název potenciálního zákazníka], \"\"),\"\")","v":""},{"$f":"IFERROR(IF(ÚdajeOPotenciálníchZákaznících[Předpovídané \nuzavření] <>\"\",IF(ÚdajeOPotenciálníchZákaznících[Předpovídané \nuzavření]= \"Leden\",ÚdajeOPotenciálníchZákaznících[Vážená \nprognóza],0),\"\"),\"\")","v":""},{"$f":"IFERROR(IF(ÚdajeOPotenciálníchZákaznících[Předpovídané \nuzavření] <>\"\",IF(ÚdajeOPotenciálníchZákaznících[Předpovídané \nuzavření] = \"Únor\",ÚdajeOPotenciálníchZákaznících[Vážená \nprognóza],0),\"\"),\"\")","v":""},{"$f":"IFERROR(IF(ÚdajeOPotenciálníchZákaznících[Předpovídané \nuzavření] <>\"\",IF(ÚdajeOPotenciálníchZákaznících[Předpovídané \nuzavření] = \"Březen\",ÚdajeOPotenciálníchZákaznících[Vážená \nprognóza],0),\"\"),\"\")","v":""},{"$f":"IFERROR(IF(ÚdajeOPotenciálníchZákaznících[Předpovídané \nuzavření] <>\"\",IF(ÚdajeOPotenciálníchZákaznících[Předpovídané \nuzavření] = \"Duben\",ÚdajeOPotenciálníchZákaznících[Vážená \nprognóza],0),\"\"),\"\")","v":""},{"$f":"IFERROR(IF(ÚdajeOPotenciálníchZákaznících[Předpovídané \nuzavření] <>\"\",IF(ÚdajeOPotenciálníchZákaznících[Předpovídané \nuzavření] = \"Květen\",ÚdajeOPotenciálníchZákaznících[Vážená \nprognóza],0),\"\"),\"\")","v":""},{"$f":"IFERROR(IF(ÚdajeOPotenciálníchZákaznících[Předpovídané \nuzavření] <>\"\",IF(ÚdajeOPotenciálníchZákaznících[Předpovídané \nuzavření] = \"Červen\",ÚdajeOPotenciálníchZákaznících[Vážená \nprognóza],0),\"\"),\"\")","v":""},{"$f":"IFERROR(IF(ÚdajeOPotenciálníchZákaznících[Předpovídané \nuzavření] <>\"\",IF(ÚdajeOPotenciálníchZákaznících[Předpovídané \nuzavření] = \"Červenec\",ÚdajeOPotenciálníchZákaznících[Vážená \nprognóza],0),\"\"),\"\")","v":""},{"$f":"IFERROR(IF(ÚdajeOPotenciálníchZákaznících[Předpovídané \nuzavření] <>\"\",IF(ÚdajeOPotenciálníchZákaznících[Předpovídané \nuzavření] = \"Srpen\",ÚdajeOPotenciálníchZákaznících[Vážená \nprognóza],0),\"\"),\"\")","v":""},{"$f":"IFERROR(IF(ÚdajeOPotenciálníchZákaznících[Předpovídané \nuzavření] <>\"\",IF(ÚdajeOPotenciálníchZákaznících[Předpovídané \nuzavření] = \"Září\",ÚdajeOPotenciálníchZákaznících[Vážená \nprognóza],0),\"\"),\"\")","v":""},{"$f":"IFERROR(IF(ÚdajeOPotenciálníchZákaznících[Předpovídané \nuzavření] <>\"\",IF(ÚdajeOPotenciálníchZákaznících[Předpovídané \nuzavření] = \"Říjen\",ÚdajeOPotenciálníchZákaznících[Vážená \nprognóza],0),\"\"),\"\")","v":""},{"$f":"IFERROR(IF(ÚdajeOPotenciálníchZákaznících[Předpovídané \nuzavření] <>\"\",IF(ÚdajeOPotenciálníchZákaznících[Předpovídané \nuzavření] = \"Listopad\",ÚdajeOPotenciálníchZákaznících[Vážená \nprognóza],0),\"\"),\"\")","v":""},{"$f":"IFERROR(IF(ÚdajeOPotenciálníchZákaznících[Předpovídané \nuzavření] <>\"\",IF(ÚdajeOPotenciálníchZákaznících[Předpovídané \nuzavření] = \"Prosinec\",ÚdajeOPotenciálníchZákaznících[Vážená \nprognóza],0),\"\"),\"\")","v":""}]
[null,{"$f":"IFERROR(IF(AND(ÚdajeOPotenciálníchZákaznících[Název potenciálního zákazníka] <> \"\", ROW(PrognózaProdejů[Název potenciálního zákazníka])<>PosledníPoložka),ÚdajeOPotenciálníchZákaznících[Název potenciálního zákazníka], \"\"),\"\")","v":""},{"$f":"IFERROR(IF(ÚdajeOPotenciálníchZákaznících[Předpovídané \nuzavření] <>\"\",IF(ÚdajeOPotenciálníchZákaznících[Předpovídané \nuzavření]= \"Leden\",ÚdajeOPotenciálníchZákaznících[Vážená \nprognóza],0),\"\"),\"\")","v":""},{"$f":"IFERROR(IF(ÚdajeOPotenciálníchZákaznících[Předpovídané \nuzavření] <>\"\",IF(ÚdajeOPotenciálníchZákaznících[Předpovídané \nuzavření] = \"Únor\",ÚdajeOPotenciálníchZákaznících[Vážená \nprognóza],0),\"\"),\"\")","v":""},{"$f":"IFERROR(IF(ÚdajeOPotenciálníchZákaznících[Předpovídané \nuzavření] <>\"\",IF(ÚdajeOPotenciálníchZákaznících[Předpovídané \nuzavření] = \"Březen\",ÚdajeOPotenciálníchZákaznících[Vážená \nprognóza],0),\"\"),\"\")","v":""},{"$f":"IFERROR(IF(ÚdajeOPotenciálníchZákaznících[Předpovídané \nuzavření] <>\"\",IF(ÚdajeOPotenciálníchZákaznících[Předpovídané \nuzavření] = \"Duben\",ÚdajeOPotenciálníchZákaznících[Vážená \nprognóza],0),\"\"),\"\")","v":""},{"$f":"IFERROR(IF(ÚdajeOPotenciálníchZákaznících[Předpovídané \nuzavření] <>\"\",IF(ÚdajeOPotenciálníchZákaznících[Předpovídané \nuzavření] = \"Květen\",ÚdajeOPotenciálníchZákaznících[Vážená \nprognóza],0),\"\"),\"\")","v":""},{"$f":"IFERROR(IF(ÚdajeOPotenciálníchZákaznících[Předpovídané \nuzavření] <>\"\",IF(ÚdajeOPotenciálníchZákaznících[Předpovídané \nuzavření] = \"Červen\",ÚdajeOPotenciálníchZákaznících[Vážená \nprognóza],0),\"\"),\"\")","v":""},{"$f":"IFERROR(IF(ÚdajeOPotenciálníchZákaznících[Předpovídané \nuzavření] <>\"\",IF(ÚdajeOPotenciálníchZákaznících[Předpovídané \nuzavření] = \"Červenec\",ÚdajeOPotenciálníchZákaznících[Vážená \nprognóza],0),\"\"),\"\")","v":""},{"$f":"IFERROR(IF(ÚdajeOPotenciálníchZákaznících[Předpovídané \nuzavření] <>\"\",IF(ÚdajeOPotenciálníchZákaznících[Předpovídané \nuzavření] = \"Srpen\",ÚdajeOPotenciálníchZákaznících[Vážená \nprognóza],0),\"\"),\"\")","v":""},{"$f":"IFERROR(IF(ÚdajeOPotenciálníchZákaznících[Předpovídané \nuzavření] <>\"\",IF(ÚdajeOPotenciálníchZákaznících[Předpovídané \nuzavření] = \"Září\",ÚdajeOPotenciálníchZákaznících[Vážená \nprognóza],0),\"\"),\"\")","v":""},{"$f":"IFERROR(IF(ÚdajeOPotenciálníchZákaznících[Předpovídané \nuzavření] <>\"\",IF(ÚdajeOPotenciálníchZákaznících[Předpovídané \nuzavření] = \"Říjen\",ÚdajeOPotenciálníchZákaznících[Vážená \nprognóza],0),\"\"),\"\")","v":""},{"$f":"IFERROR(IF(ÚdajeOPotenciálníchZákaznících[Předpovídané \nuzavření] <>\"\",IF(ÚdajeOPotenciálníchZákaznících[Předpovídané \nuzavření] = \"Listopad\",ÚdajeOPotenciálníchZákaznících[Vážená \nprognóza],0),\"\"),\"\")","v":""},{"$f":"IFERROR(IF(ÚdajeOPotenciálníchZákaznících[Předpovídané \nuzavření] <>\"\",IF(ÚdajeOPotenciálníchZákaznících[Předpovídané \nuzavření] = \"Prosinec\",ÚdajeOPotenciálníchZákaznících[Vážená \nprognóza],0),\"\"),\"\")","v":""}]
[null,"Celkem",{"$f":"SUBTOTAL(109,PrognózaProdejů[Prognóza \nna leden])","v":{"v":270000,"d":"270,000 Kč"}},{"$f":"SUBTOTAL(109,PrognózaProdejů[Prognóza \nna únor])","v":{"v":20000,"d":"20,000 Kč"}},{"$f":"SUBTOTAL(109,PrognózaProdejů[Prognóza \nna březen])","v":{"v":20000,"d":"20,000 Kč"}},{"$f":"SUBTOTAL(109,PrognózaProdejů[Prognóza \nna duben])","v":{"v":0,"d":"0 Kč"}},{"$f":"SUBTOTAL(109,PrognózaProdejů[Prognóza \nna květen])","v":{"v":0,"d":"0 Kč"}},{"$f":"SUBTOTAL(109,PrognózaProdejů[Prognóza \nna červen])","v":{"v":0,"d":"0 Kč"}},{"$f":"SUBTOTAL(109,PrognózaProdejů[Prognóza na červenec])","v":{"v":0,"d":"0 Kč"}},{"$f":"SUBTOTAL(109,PrognózaProdejů[Prognóza \nna srpen])","v":{"v":0,"d":"0 Kč"}},{"$f":"SUBTOTAL(109,PrognózaProdejů[Prognóza \nna září])","v":{"v":0,"d":"0 Kč"}},{"$f":"SUBTOTAL(109,PrognózaProdejů[Prognóza \nna říjen])","v":{"v":0,"d":"0 Kč"}},{"$f":"SUBTOTAL(109,PrognózaProdejů[Prognóza \nna listopad])","v":{"v":0,"d":"0 Kč"}},{"$f":"SUBTOTAL(109,PrognózaProdejů[Prognóza \nna prosinec])","v":{"v":0,"d":"0 Kč"}}]
[null,"Kumulativní součet",{"$f":"C20","v":{"v":270000,"d":"270,000 Kč"}},{"$f":"C21+D20","v":{"v":290000,"d":"290,000 Kč"}},{"$f":"D21+E20","v":{"v":310000,"d":"310,000 Kč"}},{"$f":"E21+F20","v":{"v":310000,"d":"310,000 Kč"}},{"$f":"F21+G20","v":{"v":310000,"d":"310,000 Kč"}},{"$f":"G21+H20","v":{"v":310000,"d":"310,000 Kč"}},{"$f":"H21+I20","v":{"v":310000,"d":"310,000 Kč"}},{"$f":"I21+J20","v":{"v":310000,"d":"310,000 Kč"}},{"$f":"J21+K20","v":{"v":310000,"d":"310,000 Kč"}},{"$f":"K21+L20","v":{"v":310000,"d":"310,000 Kč"}},{"$f":"L21+M20","v":{"v":310000,"d":"310,000 Kč"}},{"$f":"M21+N20","v":{"v":310000,"d":"310,000 Kč"}}]

{"sheet":"Měsíční vážená prognóza","index":2,"n_rows":3,"n_cols":2,"rows_kept":3}
[null,{"$f":"Název_společnosti","v":"Název společnosti"}]
[null,"Měsíční vážená prognóza"]
[null," "]